bitfinex/quotes_ETHUSD_20220109
["timestamp","ask_amount","ask_price","bid_price","bid_amount"]
[1641758371805,1.21652824,3203.2,3203.1,0.00568424]
[1641758371997,1.21652824,3203.2,3203.1,0.45568424]
[1641758375644,1.09487542,3203.2,3203.1,0.45568424]
[1641758375841,1.12419459,3203.5,3203.2,0.58487542]
[1641758376044,0.00155301,3203.7,3203.5,1.42419459]
[1641758376243,7.17093739,3205.2,3203.6,8.85]
[1641758376244,7.68945787,3205.1,3203.6,8.85]
[1641758376441,0.00155301,3205.0,3203.6,0.45284212]
[1641758376645,0.00666882,3205.0,3203.7,0.00227369]
[1641758376842,1.17844591,3204.9,3203.8,0.45]
[1641758377143,2.43500854,3204.9,3203.8,1.70569482]
[1641758377346,0.00397896,3204.8,3203.9,0.00113685]
[1641758377541,0.00397896,3204.8,3204.0,0.45]
[1641758377741,0.00341054,3204.7,3204.0,0.75]
[1641758377944,1.17389852,3204.9,3204.0,0.53027422]
[1641758377945,1.12730906,3204.9,3204.0,0.53027422]
[1641758378148,1.12730906,3204.9,3204.1,0.00341054]
[1641758378343,1.12730906,3204.9,3204.2,0.45]
[1641758378743,1.12730906,3204.9,3204.3,0.00227369]
[1641758378942,1.12730906,3204.9,3204.4,0.45]
[1641758379395,1.12730906,3204.9,3204.5,0.00113685]
[1641758379596,1.12730906,3204.9,3204.5,0.45113685]
[1641758379999,3.97869339,3204.9,3204.5,0.00113685]
[1641758380402,3.97869339,3204.9,3204.2,0.00284212]
[1641758380403,1.13940194,3204.9,3204.2,0.00284212]
[1641758380596,3.64106152,3204.9,3204.2,0.00284212]
[1641758380799,1.38312237,3204.4,3204.1,0.35284212]
[1641758380997,1.1980822,3204.3,3204.1,0.35284212]
[1641758381197,1.14209496,3204.3,3204.1,0.35284212]
[1641758388298,1.14209496,3204.3,3204.1,0.35364212]
[1641758388898,1.14209496,3204.3,3204.1,0.35444212]
[1641758389097,0.14209496,3204.3,3204.1,0.35444212]
[1641758389699,12.61581008,3204.3,3204.1,0.0016]
[1641758389899,0.19383008,3204.3,3203.5,1.12419459]
[1641758390098,0.11581008,3204.3,3203.6,2.64769736]
[1641758390300,0.11581008,3204.3,3203.6,0.00341054]
[1641758390546,0.11581008,3204.3,3203.7,0.45]
[1641758390748,2.61109157,3204.2,3203.7,0.45]
[1641758390945,2.61109157,3204.2,3203.8,0.00227369]
[1641758391946,0.11581008,3204.3,3203.8,0.00227369]
[1641758392146,0.11581008,3204.3,3203.8,0.13512744]
[1641758392547,0.11581008,3204.3,3203.9,0.00170527]
[1641758394202,0.11581008,3204.3,3203.9,0.13455902]
[1641758394600,0.11581008,3204.3,3204.0,0.00113684]
[1641758396001,2.75307253,3204.4,3204.0,0.00113684]
[1641758398158,3.53356773,3204.4,3204.0,0.00113684]
[1641758398458,0.07802,3204.3,3204.0,0.00113684]
[1641758398658,0.75612,3204.3,3204.0,0.00113684]
[1641758399761,0.73045,3204.2,3204.0,0.00113684]
[1641758399961,2.65741329,3204.2,3204.0,0.00113684]
[1641758400564,2.65741329,3204.2,3204.1,0.08027422]
[1641758400766,2.65741329,3204.2,3204.1,0.53027422]
[1641758400963,1.34535646,3204.4,3204.1,0.53027422]
[1641758401368,1.34535646,3204.4,3204.1,0.45]
[1641758401795,3.988,3204.7,3204.1,1.2301543]
[1641758401996,0.00341054,3204.8,3204.7,7.33529935]
[1641758402197,0.00341054,3204.8,3204.7,4.68313486]
[1641758402395,0.00341054,3204.8,3204.7,6.81571172]
[1641758402794,0.00341054,3204.8,3204.7,9.14173598]
[1641758402994,0.00341054,3204.8,3204.7,9.06146176]
[1641758403196,0.00341054,3204.8,3204.7,9.84138176]
[1641758403998,0.00341054,3204.8,3204.7,18.11307912]
[1641758404196,1.0,3205.8,3204.8,12.55]
[1641758404498,1.0,3205.8,3205.7,5.624]
[1641758404695,1.0,3205.8,3205.7,6.8038]
[1641758404895,1.0,3205.8,3205.7,8.18407422]
[1641758405100,1.0,3205.8,3205.7,8.48407422]
[1641758405298,1.0,3205.8,3205.7,11.30213605]
[1641758405572,1.0,3205.8,3205.7,8.12237498]
[1641758405862,1.0,3205.8,3205.7,6.8038]
[1641758406063,1.0,3205.8,3205.7,7.8038]
[1641758406262,0.95,3205.8,3205.7,6.8038]
[1641758406463,0.95,3205.8,3205.7,1.1798]
[1641758406666,2.41145098,3205.8,3205.7,0.45]
[1641758407865,0.95,3205.8,3205.7,0.45]
[1641758408264,0.95,3205.8,3205.7,1.6619198]
[1641758408462,0.95568424,3205.8,3205.7,0.45]
[1641758409062,2.44158915,3205.8,3205.7,0.45]
[1641758409298,1.15900091,3205.8,3205.7,0.45]
[1641758409499,1.36231758,3205.8,3205.7,0.45]
[1641758410604,1.36231758,3205.8,3205.7,4.69131927]
[1641758410801,0.41231758,3205.8,3205.7,4.69131927]
[1641758411099,0.41231758,3205.8,3205.7,5.69131927]
[1641758411300,0.41231758,3205.8,3205.7,3.06608242]
[1641758411700,0.41231758,3205.8,3205.7,5.55456128]
[1641758411905,0.41231758,3205.8,3205.7,3.06608242]
[1641758412098,0.41231758,3205.8,3205.7,5.64091137]
[1641758412498,0.41231758,3205.8,3205.7,3.06608242]
[1641758413759,0.36231758,3205.8,3205.7,3.06608242]
[1641758414764,0.36231758,3205.8,3205.7,5.80045761]
[1641758415159,0.36231758,3205.8,3205.7,6.10045761]
[1641758416160,0.36231758,3205.8,3205.7,5.8906058]
[1641758416360,0.36231758,3205.8,3205.7,3.36608242]
[1641758416801,0.36231758,3205.8,3205.7,0.45]
[1641758419102,0.36231758,3205.8,3205.7,1.96560812]
[1641758420649,0.36231758,3205.8,3205.7,4.46983524]
[1641758420850,0.36231758,3205.8,3205.7,2.96560812]
[1641758421457,0.36231758,3205.8,3205.7,3.04588234]
[1641758421853,0.36231758,3205.8,3205.7,0.53027422]
[1641758422055,0.36231758,3205.8,3205.7,0.45]
[1641758423254,0.36231758,3205.8,3205.7,0.53027422]
[1641758424211,0.36231758,3205.8,3205.7,0.83027422]
[1641758425004,0.36231758,3205.8,3205.7,0.53027422]
[1641758425202,0.36231758,3205.8,3205.7,0.45]
[1641758425602,0.36231758,3205.8,3205.0,1.39370671]
[1641758425802,0.15900091,3205.8,3205.1,0.77989]
[1641758426102,0.20331667,3205.4,3205.2,0.45]
[1641758426304,0.36231758,3205.4,3205.2,0.45]
[1641758426502,0.36231758,3205.4,3205.3,0.00284212]
[1641758426703,0.36231758,3205.4,3205.3,0.45284212]
[1641758426902,0.36231758,3205.4,3205.3,0.00284212]
[1641758427104,9.86231758,3205.4,3205.3,0.00284212]
[1641758427305,9.86231758,3205.4,3205.0,0.00454739]
[1641758427503,0.36231758,3205.4,3205.0,0.00454739]
[1641758431160,0.15900091,3205.4,3205.0,0.00454739]
[1641758431364,0.20331667,3205.2,3205.0,0.00454739]
[1641758431562,0.9445,3204.5,3204.3,0.45]
[1641758431810,0.9445,3204.5,3203.6,7.20064327]
[1641758431811,0.9445,3204.2,3203.7,0.94370671]
[1641758432203,0.9445,3204.2,3203.8,0.00682108]
[1641758432803,0.9445,3203.9,3203.8,0.00682108]
[1641758433002,0.9445,3203.9,3203.6,0.00795793]
[1641758434403,3.77384032,3203.9,3203.6,0.00795793]
[1641758434605,0.9445,3203.9,3203.6,0.00795793]
[1641758435008,0.9445,3203.7,3203.6,0.00795793]
[1641758443055,0.9445,3203.4,3203.1,1.21092516]
[1641758443250,0.96617955,3203.3,3203.1,1.66092516]
[1641758443453,0.9445,3203.3,3203.2,0.00227369]
[1641758443651,1.30681758,3203.3,3203.2,0.00227369]
[1641758444250,0.8967857,3203.3,3203.2,4.40227369]
[1641758444652,0.8967857,3203.3,3203.2,5.76317891]
[1641758444853,0.8967857,3203.3,3203.2,2.66317891]
[1641758445452,0.00155301,3203.8,3203.3,0.8967857]
[1641758445658,0.00155301,3203.8,3203.5,0.7802519]
[1641758445855,0.00155301,3203.8,3203.7,18.18663282]
[1641758446154,0.22291776,3204.3,3203.9,1.43783772]
[1641758446354,0.2283596,3204.4,3204.1,11.9]
[1641758446556,0.0654416,3204.4,3204.2,1.01255557]
[1641758446798,3.20797952,3204.6,3204.4,5.55]
[1641758446997,3.20797952,3204.6,3204.2,0.08027422]
[1641758446998,0.26304565,3204.6,3204.2,0.08027422]
[1641758447203,0.00454739,3204.4,3204.1,0.45]
[1641758447600,0.26304565,3204.6,3204.1,0.45]
[1641758447601,0.00397897,3204.3,3204.1,0.45]
[1641758447999,0.26304565,3204.6,3204.3,0.78003]
[1641758448201,0.26304565,3204.6,3204.4,0.45]
[1641758448499,0.00511581,3204.5,3204.4,0.45]
[1641758448700,0.00516146,3204.6,3204.5,9.25]
[1641758448898,0.00516146,3204.6,3204.5,6.9532]
[1641758449198,0.00516146,3204.6,3204.5,26.5632]
[1641758450200,0.00516146,3204.6,3204.5,8.2532]
[1641758450650,0.04565749,3204.9,3204.6,12.55]
[1641758450854,0.02284077,3205.1,3204.6,12.55]
[1641758450855,0.02284077,3205.1,3204.9,11.15]
[1641758451049,0.02284077,3205.1,3205.0,19.33241349]
[1641758451250,0.02284077,3205.6,3205.3,0.0228]
[1641758451453,3.09188422,3206.8,3205.5,5.624]
[1641758451652,3.09188422,3206.8,3206.2,5.624]
[1641758451854,1.17743739,3207.2,3206.5,1.92247813]
[1641758452050,1.17743739,3207.2,3206.6,0.75]
[1641758452250,1.43369112,3206.8,3206.6,0.75]
[1641758452450,1.43369112,3206.8,3206.6,1.75]
[1641758452651,0.01250532,3206.7,3206.6,0.45]
[1641758453251,0.01250532,3206.7,3206.6,0.75]
[1641758454397,0.01250532,3206.7,3206.6,0.45]
[1641758454797,12.51250532,3206.7,3206.6,0.0001]
[1641758454997,0.02907036,3206.5,3206.1,0.2006]
[1641758455197,0.01293124,3206.3,3205.9,0.45]
[1641758455399,1.22204268,3205.9,3205.5,0.45]
[1641758455898,0.00738951,3205.8,3205.5,0.45]
[1641758456296,0.00682108,3205.7,3205.5,0.45]
[1641758456698,0.00625266,3205.6,3205.5,0.45]
[1641758457498,1.48504156,3205.6,3205.5,0.53027422]
[1641758457697,1.48504156,3205.6,3205.5,0.45]
[1641758457954,1.48504156,3205.6,3205.4,1.5302]
[1641758457955,1.48504156,3205.6,3205.4,0.2302]
[1641758458354,0.00568424,3205.5,3205.4,0.2302]
[1641758460459,12.5,3205.4,3204.1,0.46208525]
[1641758460659,2.87997993,3205.3,3204.1,0.45]
[1641758460858,0.03967814,3205.2,3204.2,0.00170527]
[1641758461059,0.12165711,3205.2,3204.2,0.00170527]
[1641758461262,0.00341054,3205.1,3203.9,0.00341054]
[1641758461559,1.10680025,3204.4,3203.9,0.00341054]
[1641758462197,1.10680025,3204.4,3203.8,0.00397896]
[1641758462400,0.00397897,3205.2,3203.8,0.00397896]
[1641758462601,1.24191612,3204.4,3204.0,1.16323552]
[1641758462799,1.24191612,3204.4,3203.9,0.45]
[1641758462800,1.24191612,3204.4,3204.1,0.45]
[1641758463004,1.24191612,3204.4,3204.1,0.45227369]
[1641758463200,1.24191612,3204.4,3204.2,0.00170527]
[1641758465949,0.00341054,3205.1,3204.2,0.00170527]
[1641758466350,2.90691226,3205.4,3204.2,0.00170527]
[1641758466351,0.00284212,3205.0,3204.2,0.00170527]
[1641758466749,0.0022737,3204.9,3204.2,0.00170527]
[1641758467149,1.22452694,3204.3,3204.2,0.00170527]
[1641758467351,0.00170527,3204.8,3204.2,0.00170527]
[1641758467352,0.00170527,3204.8,3204.3,1.22452694]
[1641758467553,0.00397897,3205.2,3204.4,2.7898377]
[1641758467749,0.078,3205.3,3204.5,6.5]
[1641758467953,8.34785997,3206.0,3204.9,1.08965244]
[1641758468151,0.00227369,3205.1,3205.0,0.45]
[1641758468350,0.00625266,3205.8,3205.0,1.63707972]
[1641758468550,0.00625266,3205.8,3205.2,1.55954]
[1641758468752,0.00568423,3205.7,3205.3,1.2297677]
[1641758469200,0.00511581,3205.6,3205.3,2.2297677]
[1641758469395,0.00511581,3205.6,3205.3,1.2297677]
[1641758469396,1.40491961,3205.4,3205.3,1.2297677]
[1641758469595,2.74464537,3205.4,3205.3,0.45]
[1641758469797,2.74862433,3205.4,3205.3,0.45]
[1641758470194,2.74862433,3205.4,3204.9,0.45]
[1641758470597,0.00341054,3205.3,3204.9,0.45]
[1641758470996,0.00284212,3205.2,3205.0,0.7799713]
[1641758471195,0.00284212,3205.2,3205.1,0.45]
[1641758471396,0.00341054,3205.3,3205.1,0.45]
[1641758471599,0.00284212,3205.2,3205.1,0.45]
[1641758478704,0.02949121,3205.6,3205.4,0.79051459]
[1641758479105,0.02949121,3205.6,3205.5,10.67524024]
[1641758479409,0.0279338,3205.9,3205.6,7.2]
[1641758479709,0.07799,3206.2,3205.8,0.01202633]
[1641758479904,0.07799,3206.2,3205.9,2.85362173]
[1641758480103,0.02949121,3206.6,3206.0,6.1]
[1641758480104,0.00511581,3206.1,3206.0,6.1]
[1641758480303,0.00511581,3206.1,3206.0,8.07125]
[1641758480550,0.02949121,3206.6,3206.0,2.97125]
[1641758480749,0.02949121,3206.6,3206.0,8.59525]
[1641758480955,0.00227369,3206.5,3206.0,8.59525]
[1641758481149,0.00227369,3206.5,3206.0,11.03443105]
[1641758481350,0.00170527,3206.4,3206.0,11.03443105]
[1641758481550,0.00170527,3206.4,3206.0,8.59525]
[1641758481749,0.00113685,3206.3,3206.0,10.98258073]
[1641758481954,0.00113685,3206.3,3206.2,1.559024]
[1641758482153,0.00113685,3206.3,3206.2,8.023124]
[1641758482650,0.00113685,3206.3,3206.2,9.323124]
[1641758483051,0.00113685,3206.3,3206.2,7.723124]
[1641758483251,0.00113685,3206.3,3206.2,8.833024]
[1641758483953,0.02949121,3206.6,3206.3,7.75]
[1641758484213,0.02949121,3206.6,3206.5,8.824]
[1641758484402,0.0279338,3206.9,3206.6,5.95]
[1641758484604,0.0279338,3206.9,3206.8,5.624]
[1641758484802,0.0279338,3206.9,3206.8,7.74271667]
[1641758485016,0.03134434,3206.9,3206.8,8.42751667]
[1641758485203,0.03134434,3206.9,3206.8,9.42751667]
[1641758485402,0.02949121,3207.2,3206.9,11.3792843]
[1641758485604,0.02949121,3207.2,3207.1,5.624]
[1641758485805,0.02949121,3207.2,3207.1,6.374]
[1641758486005,0.02949121,3207.5,3207.2,5.1]
[1641758486206,0.02949121,3207.5,3207.4,5.624]
[1641758486405,0.02949121,3207.5,3207.4,7.36515517]
[1641758486607,0.02949121,3207.5,3207.4,8.66515517]
[1641758486805,0.02949121,3207.5,3207.4,3.34115517]
[1641758487006,0.02949121,3207.5,3207.4,2.89115517]
[1641758487209,0.02949121,3207.5,3207.4,1.59115517]
[1641758487407,0.02949121,3207.9,3207.6,1.55827]
[1641758487606,0.02949121,3207.9,3207.7,5.574]
[1641758487808,0.02949121,3207.9,3207.8,2.38590255]
[1641758488051,0.02949121,3207.9,3207.8,0.45]
[1641758488246,0.03517544,3207.9,3207.8,0.45]
[1641758488949,0.03517544,3207.9,3207.8,1.4902]
[1641758489352,0.03517544,3207.9,3207.4,0.45]
[1641758489753,0.00511581,3207.8,3207.4,0.45]
[1641758489950,0.00511581,3207.8,3207.0,0.45]
[1641758489951,0.02268102,3207.7,3207.0,0.45]
[1641758490251,1.10998565,3207.4,3207.0,0.45]
[1641758490449,0.00397896,3207.6,3207.0,0.45]
[1641758490651,0.00227369,3207.3,3207.0,0.45]
[1641758490855,0.00341054,3207.5,3207.0,0.45]
[1641758491052,0.00170527,3207.2,3207.0,0.45]
[1641758491251,0.00284211,3207.4,3207.0,0.45]
[1641758491451,0.00113684,3207.1,3207.0,0.45]
[1641758491704,0.00227369,3207.3,3207.0,0.45]
[1641758491899,0.00113684,3207.1,3207.0,0.45]
[1641758492099,0.00170527,3207.2,3207.0,0.45]
[1641758492303,0.00113684,3207.1,3207.0,0.45]
[1641758492702,1.27420736,3207.1,3207.0,0.45]
[1641758495203,0.00113684,3207.1,3207.0,0.45]
[1641758496748,1.41234403,3207.1,3207.0,0.45]
[1641758497056,0.80910121,3207.9,3206.2,1.0389]
[1641758497057,0.01269909,3207.5,3206.2,1.0389]
[1641758497249,1.2112268,3206.7,3206.2,1.0389]
[1641758497449,1.2112268,3206.7,3206.3,0.00454738]
[1641758497859,1.14696842,3206.6,3206.3,0.00454738]
[1641758499049,1.2112268,3206.7,3206.3,0.00454738]
[1641758499302,3.25642302,3207.4,3206.3,0.00454738]
[1641758499801,0.00113685,3207.3,3206.1,0.00568423]
[1641758500004,0.07795,3207.2,3206.3,1.01701955]
[1641758500209,0.07908685,3207.3,3206.4,2.46934173]
[1641758500408,0.07908685,3207.3,3206.9,1.50130403]
[1641758500607,0.00113685,3207.3,3206.8,0.45]
[1641758501004,0.00113685,3207.3,3206.9,0.00113684]
[1641758501804,0.00113685,3207.3,3206.9,1.55172321]
[1641758502410,0.00113685,3207.3,3206.9,3.87802198]
[1641758502604,0.00113685,3207.3,3206.9,1.55172321]
[1641758503652,0.00113685,3207.3,3206.9,0.00113684]
[1641758504454,1.42050345,3207.0,3206.5,0.00341054]
[1641758504656,1.42050345,3207.0,3205.5,1.96290809]
[1641758504657,6.50908035,3206.0,3205.5,1.96290809]
[1641758504857,0.04621762,3205.9,3205.6,0.67477084]
[1641758505056,0.07797,3205.9,3205.8,0.00397896]
[1641758505756,0.07797,3205.9,3205.8,1.35088653]
[1641758505956,0.07797,3205.9,3205.8,1.46952545]
[1641758506155,0.07797,3205.9,3205.8,0.00397896]
[1641758506556,0.07797,3205.9,3205.5,0.00568423]
[1641758506825,6.50908035,3206.0,3205.5,0.00568423]
[1641758507025,6.50908035,3206.0,3205.7,1.42338049]
[1641758507626,6.50908035,3206.0,3205.7,1.40226089]
[1641758508225,6.50908035,3206.0,3205.5,0.00568423]
[1641758508424,0.01689323,3205.9,3205.5,0.00568423]
[1641758508625,6.50908035,3206.0,3205.5,0.00568423]
[1641758509224,7.73027373,3206.0,3205.5,0.00568423]
[1641758509425,9.11725654,3206.0,3205.5,1.24447377]
[1641758509828,6.50908035,3206.0,3205.6,0.00511581]
[1641758511263,6.50908035,3206.0,3205.5,0.00568423]
[1641758511660,6.47948488,3206.0,3205.5,0.00568423]
[1641758511862,1.27498817,3205.9,3205.5,0.00568423]
[1641758512258,1.3997509,3205.8,3205.5,0.00568423]
[1641758512460,1.27498817,3205.9,3205.5,0.00568423]
[1641758512660,1.27498817,3205.9,3205.5,1.48269075]
[1641758513059,1.27498817,3205.9,3205.6,0.00511581]
[1641758513760,1.27498817,3205.9,3205.5,0.00568423]
[1641758515202,1.27498817,3205.9,3205.5,0.0107817]
[1641758515603,1.27498817,3205.9,3205.6,0.00511581]
[1641758515808,6.47948488,3206.0,3205.7,0.01924036]
[1641758516309,6.47948488,3206.0,3205.8,0.45]
[1641758516704,6.47948488,3206.0,3205.9,0.00341054]
[1641758517005,6.47948488,3206.0,3205.9,1.43045988]
[1641758518454,6.47948488,3206.0,3205.9,0.00341054]
[1641758519451,6.47948488,3206.0,3205.6,0.00511581]
[1641758519749,1.15316912,3205.7,3205.6,0.00511581]
[1641758520150,1.15316912,3205.7,3205.5,0.00568423]
[1641758522811,6.47948488,3206.0,3205.6,1.40301572]
[1641758523011,6.47948488,3206.0,3205.7,0.45]
[1641758523211,6.47948488,3206.0,3205.7,0.53482161]
[1641758524012,1.44427673,3205.8,3205.7,0.53482161]
[1641758524414,6.47948488,3206.0,3205.7,0.53482161]
[1641758524815,6.47948488,3206.0,3205.8,0.00494751]
[1641758525017,6.47948488,3206.0,3205.8,0.45]
[1641758525214,6.47948488,3206.0,3205.9,0.00341054]
[1641758525468,4.32288488,3206.0,3205.9,7.88185011]
[1641758525654,4.32288488,3206.0,3205.9,11.36831798]
[1641758525855,4.32288488,3206.0,3205.9,6.11710402]
[1641758526054,4.32288488,3206.0,3205.9,3.63063615]
[1641758526454,4.32288488,3206.0,3205.9,2.85097615]
[1641758526654,4.32288488,3206.0,3205.9,2.63069615]
[1641758526854,4.32288488,3206.0,3205.9,3.63069615]
[1641758527053,4.32288488,3206.0,3205.9,2.85097615]
[1641758527256,4.32288488,3206.0,3205.9,2.93125037]
[1641758527455,4.32288488,3206.0,3205.9,0.45341054]
[1641758528556,5.5765597,3206.0,3205.9,0.45341054]
[1641758528758,4.32288488,3206.0,3205.9,0.45341054]
[1641758529838,5.70360757,3206.0,3205.9,0.45341054]
[1641758530430,4.32288488,3206.0,3205.9,0.45341054]
[1641758531321,5.35629931,3206.0,3205.9,0.45341054]
[1641758531520,5.35629931,3206.0,3205.9,0.00341054]
[1641758531818,5.35629931,3206.0,3205.5,0.00568423]
[1641758532018,0.07797,3205.9,3205.5,0.00568423]
[1641758532982,0.07797,3205.9,3204.8,1.57921855]
[1641758532983,0.79051459,3205.4,3204.8,1.57921855]
[1641758533165,0.09382952,3205.3,3204.8,1.57921855]
[1641758533367,0.07799,3205.3,3204.8,1.57921855]
[1641758533768,1.11914604,3205.0,3204.8,1.57921855]
[1641758533968,1.11914604,3205.0,3204.7,0.00454739]
[1641758535567,11.55,3204.9,3204.6,1.35833848]
[1641758535771,18.40125878,3204.8,3204.7,6.11]
[1641758535968,18.38799,3204.8,3204.7,6.11]
[1641758536169,0.07799,3204.8,3204.7,6.11]
[1641758537506,0.07799,3204.8,3204.3,1.22452694]
[1641758537507,13.35835,3204.8,3204.3,1.22452694]
[1641758537705,22.63288488,3204.7,3204.3,1.22452694]
[1641758537905,2.83965708,3204.6,3204.4,0.00170527]
[1641758538109,3.62009858,3204.6,3204.4,0.00170527]
[1641758538306,32.77071785,3204.5,3204.4,0.00170527]
[1641758538506,35.39313606,3204.5,3204.4,0.00170527]
[1641758538906,5.48313606,3204.5,3204.4,0.00170527]
[1641758539108,20.93241821,3204.5,3204.4,0.00170527]
[1641758539508,22.53241821,3204.5,3204.4,0.00170527]
[1641758539906,20.93241821,3204.5,3204.4,0.00170527]
[1641758540107,3.40286821,3204.5,3204.4,0.00170527]
[1641758540595,4.32288488,3204.7,3204.4,0.00170527]
[1641758540794,4.32288488,3204.7,3204.0,2.53787598]
[1641758540993,0.00113685,3204.6,3203.9,1.40427025]
[1641758541197,0.00113685,3204.6,3204.1,0.00170527]
[1641758541593,1.25769565,3204.3,3204.1,0.00170527]
[1641758541898,1.25769565,3204.3,3204.0,0.00227369]
[1641758542895,1.25769565,3204.3,3203.7,0.00397896]
[1641758543096,1.33729414,3203.8,3203.6,0.00454739]
[1641758543497,1.33729414,3203.8,3203.6,0.78485919]
[1641758543696,1.33729414,3203.8,3203.7,5.19031124]
[1641758543896,0.07916685,3204.6,3203.7,1.2442902]
[1641758544312,0.00151864,3204.3,3203.8,0.00341054]
[1641758544516,1.38125518,3204.3,3203.8,0.00341054]
[1641758545113,1.31237131,3204.0,3203.8,2.29327487]
[1641758545314,1.31237131,3204.0,3203.8,0.00341054]
[1641758545516,1.31237131,3204.0,3203.9,0.00284212]
[1641758545714,1.31237131,3204.0,3203.7,1.19372178]
[1641758546315,1.31237131,3204.0,3203.3,1.5605874]
[1641758546515,1.22883989,3203.4,3203.3,1.5605874]
[1641758547316,0.00227369,3204.2,3203.7,1.09536808]
[1641758547716,0.00170527,3204.1,3203.7,1.09536808]
[1641758548151,0.00113685,3204.0,3203.7,1.09536808]
[1641758548353,0.00113685,3204.0,3203.8,2.29794447]
[1641758548553,0.00227369,3204.2,3203.8,2.29794447]
[1641758548955,0.00170527,3204.1,3203.8,2.29794447]
[1641758549358,0.00113685,3204.0,3203.8,2.29794447]
[1641758549760,0.00151864,3204.3,3203.8,2.29794447]
[1641758549761,0.00147369,3204.2,3203.9,1.5603036]
[1641758549957,0.00147369,3204.2,3204.0,2.31817357]
[1641758550158,0.00090527,3204.1,3204.0,2.31817357]
[1641758550456,0.00374739,3204.6,3204.0,2.28936103]
[1641758550657,5.66821473,3204.7,3204.0,2.28936103]
[1641758550658,0.00090527,3204.1,3204.0,2.28936103]
[1641758550856,0.00317896,3204.5,3204.2,0.7801635]
[1641758551057,5.66821473,3204.7,3204.2,0.7801635]
[1641758551257,5.66821473,3204.7,3203.9,1.5603036]
[1641758551459,0.00374739,3204.6,3203.9,1.5603036]
[1641758551724,0.00374739,3204.6,3204.0,2.34223058]
[1641758551914,0.00317896,3204.5,3204.0,2.38157597]
[1641758552114,1.16819592,3204.3,3204.0,2.38157597]
[1641758552318,1.16819592,3204.3,3203.9,2.94741293]
[1641758552515,1.11966961,3204.3,3203.9,1.38710933]
[1641758552714,1.11966961,3204.3,3204.0,0.00113684]
[1641758553714,1.11966961,3204.3,3203.8,0.00227369]
[1641758554815,1.19191974,3204.2,3203.8,0.00227369]
[1641758555464,1.19191974,3204.2,3203.7,0.00284211]
[1641758555663,3.91598275,3204.2,3203.7,0.00284211]
[1641758556064,0.07802,3204.1,3203.7,0.00284211]
[1641758556264,0.07802,3204.1,3203.5,0.00397896]
[1641758556464,0.07802,3204.1,3203.1,0.00625266]
[1641758556663,1.28693412,3203.3,3203.1,0.00625266]
[1641758557465,1.28693412,3203.3,3203.0,0.00682108]
[1641758558264,0.07803,3203.2,3203.0,0.00682108]
[1641758558465,0.07803,3203.2,3202.6,0.00909477]
[1641758558963,0.07803,3203.2,3202.6,6.11909477]
[1641758559211,1.09141858,3202.8,3202.6,6.11909477]
[1641758559405,2.31220717,3202.8,3202.7,0.00852635]
[1641758560006,2.31220717,3202.8,3202.7,6.11852635]
[1641758560210,2.31220717,3202.8,3202.7,0.00852635]
[1641758560607,2.31220717,3202.8,3202.0,0.01250531]
[1641758560806,1.23854557,3202.2,3201.9,0.01307374]
[1641758561008,1.50963002,3202.1,3201.9,0.01307374]
[1641758562408,1.50963002,3202.1,3201.4,0.01591585]
[1641758562814,1.50963002,3202.1,3201.5,0.45]
[1641758563060,1.50963002,3202.1,3201.5,0.53027422]
[1641758563263,1.50963002,3202.1,3201.6,0.01477901]
[1641758563464,0.07958864,3203.0,3201.7,0.78072]
[1641758563856,0.07958864,3203.0,3201.8,0.01364216]
[1641758564255,0.07807,3203.0,3201.8,0.01364216]
[1641758564456,1.30841712,3202.7,3202.0,0.7806936]
[1641758564658,1.4974862,3202.6,3201.8,0.01364216]
[1641758564857,1.4974862,3202.6,3202.1,0.01193689]
[1641758565058,1.4974862,3202.6,3201.7,0.01421058]
[1641758565659,1.4974862,3202.6,3202.1,1.2114289]
[1641758565857,1.4974862,3202.6,3201.8,0.7807]
[1641758565858,1.30841712,3202.7,3201.8,0.7807]
[1641758566057,1.30841712,3202.7,3202.2,0.01136847]
[1641758566257,1.30841712,3202.7,3201.9,0.01307374]
[1641758566806,1.30841712,3202.7,3202.0,0.780687]
[1641758567007,1.38174369,3202.6,3202.0,0.780687]
[1641758567204,1.38174369,3202.6,3202.1,0.01193689]
[1641758567405,0.07806,3202.5,3202.1,0.01193689]
[1641758567605,1.38174369,3202.6,3201.7,0.01421058]
[1641758567806,1.38174369,3202.6,3201.7,0.46421058]
[1641758568206,1.38174369,3202.6,3201.8,0.01364216]
[1641758568408,1.38174369,3202.6,3201.9,1.40015272]
[1641758568606,1.38174369,3202.6,3201.8,0.01364216]
[1641758568808,1.38174369,3202.6,3202.0,0.01250531]
[1641758569107,1.38174369,3202.6,3201.8,0.01364216]
[1641758569309,0.07806,3203.0,3202.1,0.08027422]
[1641758569607,0.07806,3203.0,3202.3,0.00647551]
[1641758569806,0.07806,3203.0,3202.7,0.78042]
[1641758570007,0.07806,3203.0,3202.8,0.45]
[1641758570210,1.49668384,3202.9,3202.8,1.7287912]
[1641758570458,1.49668384,3202.9,3202.8,0.45]
[1641758572262,1.49668384,3202.9,3202.8,2.76791607]
[1641758572459,1.49668384,3202.9,3202.8,0.45]
[1641758574704,0.00151864,3203.4,3202.8,0.45]
[1641758575106,0.00151864,3203.4,3202.9,0.0073895]
[1641758575305,0.00151864,3203.4,3202.9,0.7878797]
[1641758575706,1.4276342,3203.3,3203.0,0.00682108]
[1641758576010,1.4276342,3203.3,3203.0,0.45682108]
[1641758576406,1.4276342,3203.3,3203.1,0.00625266]
[1641758579755,1.4276342,3203.3,3203.0,0.00682108]
[1641758580956,1.4276342,3203.3,3203.0,0.45]
[1641758581359,1.4276342,3203.3,3203.1,0.00625266]
[1641758582013,0.07803,3204.0,3203.2,0.45]
[1641758582216,0.07803,3204.2,3203.3,2.53743298]
[1641758582412,0.07803,3204.5,3203.4,0.45]
[1641758582613,0.07803,3204.5,3203.4,0.45454739]
[1641758582914,0.00170527,3204.5,3203.5,0.00397896]
[1641758583110,1.43675211,3203.8,3203.5,0.45397896]
[1641758583512,1.43675211,3203.8,3203.6,0.00341054]
[1641758585563,1.04682588,3202.5,3201.9,3.90541658]
[1641758585763,1.04682588,3202.5,3201.9,3.68141218]
[1641758585764,0.01313415,3202.4,3201.9,3.68141218]
[1641758585963,1.04682588,3202.5,3201.9,3.68141218]
[1641758585964,0.07806,3202.3,3201.9,3.68141218]
[1641758586161,1.16679807,3202.2,3201.9,3.68141218]
[1641758586465,1.04682588,3202.5,3202.1,1.11891427]
[1641758586862,1.04682588,3202.5,3202.2,0.00795793]
[1641758587665,1.04682588,3202.5,3201.8,0.46023162]
[1641758587862,1.04682588,3202.5,3201.9,0.0096632]